bitfinex/quotes_BTCUSD_20251219
["timestamp","ask_amount","ask_price","bid_price","bid_amount"]
[1766142208698,0.50292,88410.0,88397.0,0.00568]
[1766142210339,0.50292,88410.0,88397.0,0.0169926]
[1766142210582,0.50292,88410.0,88397.0,0.00568]
[1766142211099,0.50292,88410.0,88397.0,0.0169926]
[1766142211504,0.50292,88410.0,88397.0,0.00568]
[1766142211991,0.50292,88410.0,88397.0,0.0169926]
[1766142213226,0.50292,88410.0,88397.0,0.00568]
[1766142214247,0.50292,88410.0,88391.0,0.0025]
[1766142214248,0.51713,88406.0,88391.0,0.0025]
[1766142214456,0.01131119,88408.0,88394.0,0.00568]
[1766142214457,0.51713,88404.0,88394.0,0.00568]
[1766142216039,0.47892,88403.0,88394.0,0.00568]
[1766142216227,0.51713,88401.0,88394.0,0.00568]
[1766142216423,0.99605,88401.0,88394.0,0.00568]
[1766142216729,0.47892,88393.0,88385.0,0.0025]
[1766142216927,0.51713,88392.0,88385.0,0.0025]
[1766142217187,0.52844375,88388.0,88371.0,0.00271]
[1766142217417,0.51713,88385.0,88363.0,0.00271]
[1766142217626,0.05657572,88378.0,88364.0,0.00568]
[1766142217797,0.51713,88376.0,88364.0,0.00568]
[1766142218031,0.51713,88375.0,88365.0,0.0025]
[1766142218177,0.51713,88375.0,88364.0,0.00568]
[1766142218394,0.51713,88375.0,88355.0,0.00271]
[1766142218395,0.51713,88374.0,88355.0,0.00271]
[1766142218587,0.99605,88373.0,88356.0,0.00568]
[1766142219327,0.99605,88373.0,88357.0,0.0025]
[1766142219947,0.47892,88370.0,88356.0,0.0025]
[1766142220162,0.47892,88370.0,88355.0,0.00875327]
[1766142220163,0.51713,88369.0,88355.0,0.00875327]
[1766142220281,0.51713,88369.0,88356.0,0.0025]
[1766142220685,0.51713,88369.0,88355.0,0.00875327]
[1766142220686,0.01131759,88358.0,88355.0,0.00036327]
[1766142221038,0.99605,88356.0,88355.0,3.27e-06]
[1766142222287,0.01131887,88348.0,88336.0,0.00875]
[1766142222654,0.51713,88348.0,88336.0,0.00578286]
[1766142223012,0.51713,88348.0,88337.0,0.0025]
[1766142223818,0.51713,88347.0,88337.0,0.0025]
[1766142224427,0.47892,88348.0,88347.0,0.001099]
[1766142224740,0.00568,88349.0,88347.0,0.001099]
[1766142224942,0.00568,88349.0,88339.0,0.01132002]
[1766142225141,4.345e-05,90690.0,88339.0,0.01132002]
[1766142225142,0.51713,88364.0,88348.0,0.01131887]
[1766142225342,0.00568,88363.0,88345.0,0.00307]
[1766142225544,0.00568,88362.0,88348.0,0.01131887]
[1766142225821,0.00568,88362.0,88337.0,0.02514056]
[1766142225822,0.01132054,88335.0,88310.0,0.01132374]
[1766142225969,0.47892,88341.0,88317.0,0.00050896]
[1766142225970,0.51713,88330.0,88317.0,0.00050896]
[1766142226172,0.51713,88319.0,88305.0,0.02714134]
[1766142226381,0.02160565,88318.0,88305.0,0.03846572]
[1766142226578,0.00568,88322.0,88306.0,0.00408]
[1766142226784,0.00568,88322.0,88308.0,0.00408]
[1766142227011,0.00568,88322.0,88311.0,0.0025]
[1766142227375,0.02160565,88321.0,88311.0,0.00408]
[1766142227606,0.00568,88322.0,88312.0,0.0025]
[1766142227780,0.02160565,88321.0,88311.0,0.00408]
[1766142227925,0.00568,88322.0,88312.0,0.0025]
[1766142228134,0.02160565,88321.0,88312.0,0.0025]
[1766142228981,0.51713,88320.0,88306.0,0.00818]
[1766142229154,0.53873565,88319.0,88309.0,0.0025]
[1766142229364,0.51713,88319.0,88309.0,0.0025]
[1766142229766,0.05661448,88317.0,88309.0,0.0025]
[1766142229966,0.05661448,88317.0,88292.0,0.01172605]
[1766142229967,0.01132361,88311.0,88299.0,0.00608]
[1766142230162,0.57374959,88309.0,88299.0,0.00608]
[1766142230415,0.02160565,88308.0,88299.0,0.00608]
[1766142231442,0.51713,88313.0,88299.0,0.00608]
[1766142231643,0.02160565,88312.0,88299.0,0.00608]
[1766142233148,0.51713,88311.0,88299.0,0.00608]
[1766142233364,0.02728565,88310.0,88299.0,0.00608]
[1766142235232,0.02728565,88310.0,88299.0,0.0004]
[1766142236687,0.51713,88308.0,88299.0,0.0004]
[1766142236967,0.53873565,88307.0,88299.0,0.0004]
[1766142237153,0.00568,88310.0,88299.0,0.0004]
[1766142237500,0.02160565,88309.0,88299.0,0.0004]
[1766142237678,0.02160565,88309.0,88301.0,0.0113249]
[1766142237872,0.02160565,88309.0,88299.0,0.0004]
[1766142243309,0.02160565,88309.0,88299.0,0.01172515]
[1766142243518,0.02964134,88319.0,88299.0,0.01172515]
[1766142243519,0.47892,88328.0,88310.0,0.01132374]
[1766142243710,0.53313665,88327.0,88308.0,0.011324]
[1766142243853,0.51713,88325.0,88308.0,0.0025]
[1766142244049,0.51359665,88324.0,88308.0,0.070444]
[1766142244342,0.01032665,88323.0,88309.0,0.01132387]
[1766142244560,0.00568,88322.0,88313.0,0.01132336]
[1766142244734,0.00568,88322.0,88312.0,0.05661718]
[1766142244953,0.00568,88322.0,88312.0,0.06794066]
[1766142245146,0.00568,88322.0,88313.0,0.01132336]
[1766142245328,0.00568,88322.0,88315.0,0.0113231]
[1766142245526,0.01032665,88329.0,88315.0,0.22646209]
[1766142245728,0.00568,88330.0,88322.0,0.05661089]
[1766142245891,0.00568,88330.0,88320.0,0.01132246]
[1766142246091,0.01032665,88335.0,88316.0,0.01240457]
[1766142246092,0.01032665,88335.0,88322.0,0.0025]
[1766142246293,0.00010878,88335.0,88322.0,0.0025]
[1766142246493,0.00010878,88335.0,88322.0,0.00818]
[1766142246740,0.00010878,88335.0,88322.0,0.0195022]
[1766142247259,0.01043543,88335.0,88322.0,0.0195022]
[1766142247408,0.01043543,88335.0,88327.0,0.01132156]
[1766142247613,0.00010878,88335.0,88325.0,0.01132182]
[1766142247818,0.01043543,88335.0,88323.0,0.01132207]
[1766142248608,0.01043543,88335.0,88324.0,0.01132195]
[1766142249010,0.01043543,88335.0,88325.0,0.01132182]
[1766142249172,0.01043543,88335.0,88327.0,0.01132156]
[1766142249369,0.00010878,88335.0,88325.0,0.06793088]
[1766142249557,0.01043543,88335.0,88325.0,0.06793091]
[1766142249953,0.01043543,88335.0,88326.0,0.01132169]
[1766142250215,0.00010878,88335.0,88326.0,0.01132169]
[1766142250369,0.00010878,88335.0,88325.0,0.01132182]
[1766142250721,0.01043543,88335.0,88325.0,0.01132182]
[1766142251014,0.01043543,88335.0,88324.0,0.0679314]
[1766142251246,0.01043543,88335.0,88329.0,0.01132131]
[1766142251420,0.00010878,88335.0,88331.0,0.01132105]
[1766142251649,0.00010878,88335.0,88332.0,0.01132092]
[1766142251981,0.00010878,88335.0,88332.0,0.06792548]
[1766142252316,0.00010878,88335.0,88334.0,0.05660334]
[1766142252517,0.00010878,88335.0,88333.0,0.05660394]
[1766142252909,0.00010878,88335.0,88332.0,0.01132092]
[1766142253258,0.00010878,88335.0,88331.0,0.01132105]
[1766142253472,0.00010878,88335.0,88332.0,0.01132092]
[1766142254011,0.00010878,88335.0,88332.0,0.06792528]
[1766142254415,0.00010878,88335.0,88333.0,0.05660375]
[1766142254615,0.00010878,88335.0,88334.0,0.05910334]
[1766142254823,0.00010878,88335.0,88334.0,0.0025]
[1766142255409,0.00010878,88335.0,88334.0,0.05910334]
[1766142255607,0.01032665,88350.0,88340.0,0.0113199]
[1766142255849,0.001099,88340.0,88338.0,0.00568]
[1766142256048,0.001099,88340.0,88334.0,0.0025]
[1766142256253,0.50327,88347.0,88335.0,0.00568]
[1766142256477,0.01032665,88346.0,88335.0,0.00568]
[1766142256681,0.49287,88344.0,88335.0,0.00568]
[1766142256883,0.01032665,88343.0,88334.0,0.0025]
[1766142257163,0.001099,88335.0,88334.0,0.0025]
[1766142257365,0.01032665,88343.0,88334.0,0.0025]
[1766142258128,0.01032665,88343.0,88335.0,0.01132054]
[1766142258283,0.01032665,88343.0,88334.0,0.0025]
[1766142258284,0.01032665,88348.0,88338.0,0.01132015]
[1766142258482,0.00568,88349.0,88339.0,0.01132002]
[1766142259024,0.00568,88349.0,88343.0,0.01131951]
[1766142259190,0.00568,88349.0,88342.0,0.06791752]
[1766142259393,0.00568,88349.0,88342.0,0.01131964]
[1766142260469,0.00568,88349.0,88343.0,0.01131951]
[1766142262273,0.00568,88349.0,88342.0,0.06791773]
[1766142262433,0.00568,88349.0,88340.0,0.0113199]
[1766142262639,0.00568,88349.0,88341.0,0.01131977]
[1766142262866,0.00568,88349.0,88339.0,0.06791961]
[1766142263246,0.00568,88349.0,88340.0,0.0113199]
[1766142263854,0.00568,88349.0,88339.0,0.06791961]
[1766142263855,0.00568,88349.0,88338.0,0.05660077]
[1766142264080,0.00568,88349.0,88338.0,0.01132015]
[1766142264293,0.00568,88349.0,88338.0,0.06792073]
[1766142264767,0.00568,88349.0,88339.0,0.01132002]
[1766142264972,0.00568,88349.0,88339.0,0.06792011]
[1766142265180,0.00568,88349.0,88340.0,0.0113199]
[1766142265369,0.00568,88349.0,88341.0,0.06791821]
[1766142265566,0.00568,88349.0,88342.0,0.01131964]
[1766142266649,0.00568,88349.0,88342.0,0.06791766]
[1766142268283,0.00568,88349.0,88342.0,0.01131964]
[1766142268511,0.00568,88349.0,88341.0,0.06791821]
[1766142268512,0.00568,88349.0,88341.0,0.01131977]
[1766142269515,0.00568,88349.0,88336.0,0.00568]
[1766142269688,0.95249,88348.0,88336.0,0.00568]
[1766142269890,0.46629,88348.0,88336.0,0.01700041]
[1766142270422,0.46629,88348.0,88336.0,0.07360228]
[1766142270990,0.46629,88348.0,88337.0,0.01132028]
[1766142271385,0.46629,88348.0,88336.0,0.07360228]
[1766142271626,0.46629,88348.0,88337.0,0.01132028]
[1766142271866,0.46629,88348.0,88336.0,0.00568]
[1766142271996,0.95249,88348.0,88336.0,0.00568]
[1766142272624,0.95249,88348.0,88336.0,0.01700041]
[1766142272825,0.95249,88348.0,88336.0,0.00568]
[1766142273032,0.95249,88348.0,88336.0,0.01700041]
[1766142273191,0.95249,88348.0,88336.0,0.00568]
[1766142273857,0.95249,88348.0,88336.0,0.01700041]
[1766142274197,0.001099,88336.0,88335.0,0.00568]
[1766142274396,0.01032665,88341.0,88334.0,0.0025]
[1766142274709,0.49373,88340.0,88334.0,0.0025]
[1766142274912,0.01032665,88339.0,88334.0,0.0025]
[1766142275112,0.49373,88338.0,88330.0,0.0025]
[1766142275303,0.001099,88334.0,88330.0,0.0025]
[1766142275504,0.01032665,88337.0,88330.0,0.0025]
[1766142275709,0.48406,88336.0,88327.0,0.00568]
[1766142275943,0.50405665,88335.0,88327.0,0.00578878]
[1766142276103,0.49373,88335.0,88327.0,0.00578878]
[1766142276345,0.01032665,88334.0,88327.0,0.00578878]
[1766142279717,0.00568,88340.0,88329.0,0.06792786]
[1766142280072,0.01600665,88340.0,88329.0,0.06792786]
[1766142280624,0.01600665,88340.0,88330.0,0.01132118]
[1766142281423,0.01600665,88340.0,88331.0,0.01132105]
[1766142281963,0.00568,88340.0,88330.0,0.01132118]
[1766142282149,0.01600665,88340.0,88331.0,0.01132105]
[1766142282346,0.00568,88340.0,88333.0,0.01132079]
[1766142282598,0.00568,88340.0,88332.0,0.01132092]
[1766142282793,0.00568,88340.0,88333.0,0.01132079]
[1766142283205,0.00568,88345.0,88335.0,0.01132054]
[1766142283424,0.00568,88345.0,88336.0,0.01132041]
[1766142283668,0.00568,88345.0,88337.0,0.01132028]
[1766142283871,0.00568,88345.0,88336.0,0.01700041]
[1766142284072,0.00568,88345.0,88337.0,0.01132028]
[1766142284702,0.00568,88345.0,88336.0,0.07360242]
[1766142285137,0.00568,88345.0,88339.0,0.01132002]
[1766142285340,0.00568,88350.0,88342.0,0.01131964]
[1766142285630,0.00568,88350.0,88341.0,0.01131977]
[1766142285833,0.00568,88350.0,88341.0,0.06791819]
[1766142286039,0.00568,88350.0,88341.0,0.01131977]
[1766142286198,0.00568,88350.0,88340.0,0.06791826]
[1766142286599,0.97779,88349.0,88331.0,0.22641925]
[1766142286801,0.49373,88348.0,88336.0,0.01700041]
[1766142287028,0.49373,88348.0,88337.0,0.01132028]
[1766142287352,0.49373,88348.0,88337.0,0.06792164]
[1766142287548,0.00568,88350.0,88338.0,0.05660021]
[1766142287913,0.00568,88350.0,88338.0,0.06792036]
[1766142288259,0.00568,88350.0,88339.0,0.01132002]
[1766142288983,0.00568,88350.0,88337.0,0.01132028]
[1766142289513,0.00568,88350.0,88338.0,0.01132015]
[1766142290475,0.00568,88350.0,88337.0,0.0679215]
[1766142290642,0.00568,88350.0,88338.0,0.01132015]
[1766142291248,0.00568,88350.0,88339.0,0.01132002]
[1766142291447,0.00568,88350.0,88340.0,0.0113199]
[1766142291642,0.00568,88350.0,88341.0,0.01131977]
[1766142291867,0.00568,88350.0,88338.0,0.0025]
[1766142292045,0.00568,88350.0,88342.0,0.06791775]
[1766142292242,0.00568,88350.0,88344.0,0.06791627]
[1766142292471,0.00568,88350.0,88343.0,0.01131951]
[1766142292644,0.00568,88350.0,88344.0,0.01131938]
[1766142292846,0.00568,88350.0,88343.0,0.01131951]
[1766142293211,0.00568,88350.0,88344.0,0.01131938]
[1766142293423,0.00568,88350.0,88345.0,0.01131925]
[1766142293663,0.00568,88350.0,88346.0,0.05659565]
[1766142293849,0.00568,88350.0,88347.0,0.06791397]
[1766142294055,0.00568,88355.0,88346.0,0.01131913]
[1766142294272,0.01032665,88354.0,88345.0,0.06791438]
[1766142294821,0.01032665,88354.0,88346.0,0.01131913]
[1766142295027,0.01032665,88354.0,88346.0,0.06791353]
[1766142295449,0.01032665,88354.0,88346.0,0.01131913]
[1766142295662,0.01032665,88354.0,88345.0,0.01131925]
[1766142295864,0.01032665,88354.0,88345.0,0.0679155]
[1766142296027,0.01032665,88354.0,88347.0,0.011319]
[1766142296415,0.01032665,88354.0,88346.0,0.06791465]
[1766142296616,0.97779,88380.0,88360.0,0.01131733]
[1766142296914,0.49373,88393.0,88370.0,1.82986792]
[1766142297112,0.02714134,88382.0,88371.0,0.02831185]
[1766142297357,0.02714134,88382.0,88373.0,0.06789402]
[1766142297594,0.02714134,88382.0,88369.0,0.01131618]
[1766142297595,0.001099,88373.0,88360.0,0.01131733]
[1766142297813,0.49373,88371.0,88315.0,0.13604]
[1766142298021,0.49373,88365.0,88353.0,0.0025]
[1766142298249,0.49373,88365.0,88354.0,0.00568]
[1766142298453,0.49373,88365.0,88347.0,0.05659453]
[1766142298454,0.49373,88345.0,88325.0,0.01132182]
[1766142298680,0.49373,88343.0,88327.0,0.01132156]
[1766142298877,0.48406,88342.0,88325.0,0.01132182]
[1766142299085,0.49373,88341.0,88321.0,0.00568]
[1766142299288,0.49373,88341.0,88321.0,0.01700233]
[1766142299490,0.49373,88341.0,88322.0,0.0113222]
[1766142299717,0.49373,88341.0,88323.0,0.01132207]
[1766142299941,0.49373,88341.0,88322.0,0.01143098]
[1766142300111,0.50504977,88341.0,88322.0,0.00010878]
[1766142300257,0.0113199,88340.0,88323.0,0.0025]
[1766142300462,0.0113199,88340.0,88302.0,0.04532]
[1766142300463,0.01132246,88320.0,88302.0,0.04532]
[1766142300782,0.01132246,88320.0,88299.0,0.0004]
[1766142300783,0.49373,88311.0,88299.0,0.0004]
[1766142300981,0.00568,88310.0,88299.0,0.0004]
[1766142301210,0.0025,88323.0,88302.0,0.01132477]
[1766142301415,0.0025,88323.0,88306.0,0.01132425]
[1766142301609,0.0025,88333.0,88314.0,0.06793938]
[1766142301810,0.0125,88331.0,88317.0,0.01132284]
[1766142302063,0.0125,88331.0,88314.0,0.00568]
[1766142302212,0.0125,88331.0,88318.0,0.02714134]
[1766142302933,0.0025,88331.0,88318.0,0.02714134]
[1766142303324,0.00568,88332.0,88318.0,0.02714134]
[1766142303517,0.00568,88332.0,88324.0,0.01132195]
[1766142303725,0.00010896,88333.0,88324.0,0.01132195]
[1766142303935,0.00010896,88333.0,88325.0,0.06793046]
[1766142304268,0.00010896,88333.0,88326.0,0.01132169]
[1766142304609,0.00010896,88333.0,88325.0,0.01132182]
[1766142304810,0.00010896,88333.0,88324.0,0.01132195]
[1766142305022,0.00010896,88333.0,88325.0,0.01132182]
[1766142305212,0.00010896,88333.0,88324.0,0.01132195]
[1766142305804,0.00010896,88333.0,88326.0,0.01132169]
[1766142306023,0.00010896,88333.0,88328.0,0.01132143]
[1766142306243,0.00010896,88333.0,88332.0,0.02964134]
[1766142306437,0.00010896,88333.0,88332.0,0.05228319]
[1766142312354,0.00010896,88333.0,88332.0,0.02964134]
[1766142313987,0.00010896,88333.0,88332.0,0.08624596]
[1766142317268,0.00010896,88333.0,88332.0,0.10888781]
[1766142317473,2e-08,88333.0,88332.0,0.10888781]
[1766142318918,0.04313379,88354.0,88343.0,0.01131951]
[1766142319253,0.04318727,88354.0,88343.0,0.01022051]
[1766142320538,0.04318727,88354.0,88344.0,0.01131938]
[1766142321287,0.04318727,88354.0,88343.0,0.06681792]
[1766142321488,0.04318727,88354.0,88341.0,0.00568]
[1766142321938,0.01131823,88353.0,88341.0,0.00568]
[1766142322091,0.04318727,88354.0,88341.0,0.00568]
[1766142322525,0.04318727,88354.0,88333.0,0.01132079]
[1766142322526,0.01132041,88336.0,88311.0,0.04532]
[1766142322773,0.01132041,88336.0,88289.0,0.1479]
[1766142322774,0.4502,88323.0,88297.0,0.04532]
[1766142322977,0.44565,88317.0,88300.0,0.01132502]
[1766142323236,0.47529,88311.0,88299.0,0.0004]
[1766142323434,0.44565,88308.0,88299.0,0.0004]
[1766142323634,0.44565,88307.0,88299.0,0.0004]
[1766142323883,0.44565,88306.0,88299.0,0.0004]
[1766142324049,0.44565,88306.0,88299.0,0.00050896]
[1766142324249,0.47529,88306.0,88299.0,0.00050896]
[1766142324464,0.92094,88306.0,88299.0,0.00050896]
[1766142325788,0.44565,88312.0,88299.0,0.00050896]
[1766142327846,0.00568,88313.0,88301.0,0.0113249]
[1766142328141,0.00568,88313.0,88303.0,0.01132464]
[1766142328277,0.00568,88313.0,88300.0,0.00568]
[1766142328707,0.00568,88313.0,88301.0,0.0113249]
[1766142329083,0.00568,88313.0,88302.0,0.01132477]
[1766142330028,0.00568,88313.0,88301.0,0.0113249]
[1766142330229,0.00568,88313.0,88300.0,0.01700502]
[1766142330534,0.00568,88313.0,88301.0,0.0113249]
[1766142330884,0.00568,88313.0,88301.0,0.06794936]
[1766142331081,0.00568,88313.0,88300.0,0.00568]
[1766142331501,0.45133,88313.0,88300.0,0.00568]
[1766142334463,0.01132348,88312.0,88299.0,0.00050896]
[1766142334636,0.45617,88305.0,88299.0,0.00050896]
[1766142334848,0.45617,88304.0,88293.0,0.00818]
[1766142335020,0.45617,88304.0,88293.0,0.01956767]
[1766142335225,0.48678,88312.0,88296.0,0.0025]
[1766142335386,0.45617,88311.0,88296.0,0.0025]
[1766142335594,0.48678,88312.0,88299.0,0.01132515]
[1766142335855,0.48678,88312.0,88297.0,0.0005]
[1766142336087,0.45617,88311.0,88297.0,0.01182541]
[1766142336235,0.45617,88311.0,88297.0,0.0005]
[1766142336440,0.45617,88311.0,88299.0,0.01132515]
[1766142336635,0.00568,88313.0,88311.0,0.001099]
[1766142336821,0.00568,88313.0,88300.0,0.01182502]
[1766142337020,0.00568,88313.0,88301.0,0.06794923]
[1766142337287,0.00568,88313.0,88302.0,0.0005]
[1766142338057,0.00568,88313.0,88305.0,0.01132438]
[1766142338359,0.004081,88313.0,88304.0,0.06794652]
[1766142338559,0.004081,88313.0,88302.0,0.01132477]
[1766142339213,0.004081,88313.0,88301.0,0.0113249]
[1766142339573,0.004081,88313.0,88301.0,0.06794921]
[1766142339798,0.004081,88313.0,88301.0,0.0113249]
[1766142339996,0.004081,88313.0,88300.0,0.00568]
[1766142340158,0.004081,88313.0,88301.0,0.0113249]
[1766142340944,0.004081,88313.0,88303.0,0.01132464]
[1766142341334,0.004081,88313.0,88304.0,0.01132451]
[1766142342092,0.004081,88313.0,88302.0,0.06794854]
[1766142342293,0.004081,88313.0,88307.0,0.01132413]
[1766142342493,0.004081,88313.0,88302.0,0.01132477]
[1766142342494,0.45617,88314.0,88301.0,0.00568]
[1766142342705,0.49246,88316.0,88303.0,0.06794724]
[1766142342706,0.0025,88315.0,88303.0,0.06794724]
[1766142342943,0.0025,88315.0,88302.0,0.06794862]
[1766142343148,0.0025,88315.0,88303.0,0.01132464]
[1766142343370,0.0025,88315.0,88304.0,0.01132451]
[1766142343573,0.0025,88315.0,88302.0,0.01132477]
[1766142343774,0.0025,88315.0,88301.0,0.00568]
[1766142344053,0.0025,88315.0,88301.0,0.0170049]
[1766142344491,0.45867,88315.0,88303.0,0.01132464]
[1766142345467,0.45867,88315.0,88303.0,0.06794775]
[1766142345635,0.45867,88315.0,88301.0,0.00568]
[1766142346250,0.45617,88313.0,88301.0,0.00568]
[1766142346456,0.45617,88312.0,88299.0,0.00568]
[1766142346705,0.001099,88299.0,88293.0,6.175e-05]
[1766142346912,0.45617,88297.0,88293.0,1.75e-06]
[1766142347171,0.00568,88300.0,88293.0,1.75e-06]
[1766142347417,0.45617,88312.0,88294.0,6e-05]
[1766142347613,0.00818,88311.0,88294.0,6e-05]
[1766142347814,0.45617,88307.0,88294.0,6e-05]
[1766142348014,0.45617,88303.0,88293.0,1.75e-06]
[1766142348219,0.45617,88301.0,88293.0,1.75e-06]
[1766142348419,1.83714182,88303.0,88292.0,1.75e-06]
[1766142348619,0.00568,88303.0,88292.0,1.75e-06]
[1766142348873,0.45867,88308.0,88292.0,1.75e-06]
[1766142349072,0.00568,88307.0,88292.0,0.00040175]
[1766142349442,0.46185,88307.0,88292.0,0.00040175]
[1766142349626,0.46185,88307.0,88292.0,0.0117278]
[1766142349826,0.46185,88307.0,88292.0,0.0683579]
[1766142350163,0.00568,88306.0,88295.0,0.01132566]
[1766142350387,0.00568,88307.0,88299.0,0.06795087]
[1766142350578,0.00528,88307.0,88299.0,0.01132515]
[1766142350775,0.00528,88307.0,88298.0,0.06795042]
[1766142350978,0.00528,88307.0,88300.0,0.01132502]
[1766142351181,0.00528,88307.0,88295.0,0.04979267]
[1766142351391,0.46145,88307.0,88290.0,1.84278813]
[1766142351547,0.45617,88301.0,88287.0,0.01430988]
[1766142351749,0.45617,88297.0,88287.0,0.0596161]
[1766142351955,0.45617,88303.0,88292.0,0.0113278]
[1766142352191,0.00528,88307.0,88292.0,0.0113278]
[1766142352552,0.00528,88307.0,88293.0,0.01132592]
[1766142352935,0.00528,88307.0,88295.0,0.02714134]
[1766142352936,0.0025,88307.0,88295.0,0.02714134]
[1766142353148,0.00818,88307.0,88295.0,0.02714134]
[1766142354372,0.00818,88307.0,88297.0,0.06795239]
[1766142354571,0.00818,88307.0,88299.0,0.01132515]
[1766142354698,0.00818,88307.0,88301.0,0.0113249]
[1766142354892,0.00568,88307.0,88303.0,0.05662283]
[1766142355125,0.00010893,88308.0,88305.0,0.01132438]
[1766142355303,0.00010893,88308.0,88303.0,0.06794775]
[1766142355707,0.00010893,88308.0,88307.0,0.05662065]
[1766142355950,0.00010893,88308.0,88307.0,0.07926891]
[1766142357065,2.78e-06,88308.0,88307.0,0.08176891]
[1766142361831,2.78e-06,88308.0,88307.0,0.05912065]
[1766142363009,2.78e-06,88308.0,88307.0,0.08176891]
[1766142363901,2.78e-06,88308.0,88307.0,0.09015462]
[1766142365745,0.00568,88338.0,88332.0,0.01132092]
[1766142365919,0.001099,88332.0,88328.0,0.01132143]
[1766142366124,0.001099,88332.0,88330.0,0.05660582]
[1766142366309,0.00578902,88338.0,88330.0,0.01132118]
[1766142366511,0.00578902,88338.0,88329.0,0.06792785]
[1766142366736,0.00578902,88338.0,88330.0,0.01132118]
[1766142367295,0.00578902,88338.0,88329.0,0.06792785]
[1766142367498,0.001099,88330.0,88329.0,0.01132131]
[1766142367959,0.00578902,88338.0,88330.0,0.01132118]
[1766142368444,0.00578902,88338.0,88331.0,0.01132105]
[1766142368625,0.00578902,88338.0,88332.0,0.01022192]
[1766142368964,0.00578902,88338.0,88330.0,0.06792708]
[1766142369388,0.00578902,88338.0,88330.0,0.01132118]
[1766142370205,0.00578902,88338.0,88329.0,0.01132131]
[1766142370399,0.00578902,88338.0,88328.0,0.09057144]
[1766142370639,0.00578902,88338.0,88329.0,0.01132131]
[1766142370842,0.00578902,88338.0,88330.0,0.01132118]
[1766142371213,0.00578902,88338.0,88335.0,0.01132054]
[1766142371380,0.00578902,88338.0,88335.0,0.06792264]
[1766142371882,0.00010902,88338.0,88335.0,0.06792264]
[1766142372083,0.00010902,88338.0,88336.0,0.05660144]
[1766142372476,0.00010902,88338.0,88335.0,0.06792264]
[1766142372686,0.00010902,88338.0,88334.0,0.06792395]
[1766142372937,0.00010902,88338.0,88335.0,0.01132054]
[1766142373150,0.00010902,88338.0,88335.0,0.06792315]
[1766142373896,0.00010902,88338.0,88335.0,0.01132054]
[1766142374411,0.00010902,88338.0,88335.0,0.06792312]
[1766142374593,0.00010902,88338.0,88337.0,0.05660142]
[1766142374801,0.00010902,88338.0,88335.0,0.01132054]
[1766142375238,0.00010902,88338.0,88336.0,0.05660197]
[1766142376213,0.00010902,88338.0,88337.0,0.05660142]
[1766142376826,0.00010902,88338.0,88336.0,0.05660197]
[1766142377646,0.00010902,88338.0,88337.0,0.05660142]
[1766142379658,0.00010902,88338.0,88336.0,0.05660197]
[1766142379867,0.00010902,88338.0,88337.0,0.05660142]
[1766142380489,2e-08,88338.0,88337.0,0.05660142]
[1766142381982,2e-08,88338.0,88336.0,0.05660197]
[1766142382188,2e-08,88338.0,88337.0,0.05649242]
[1766142384422,2e-08,88338.0,88336.0,0.05660197]
[1766142385600,2e-08,88338.0,88335.0,0.06792299]
[1766142385938,2e-08,88338.0,88337.0,0.05660142]
[1766142386302,2e-08,88338.0,88336.0,0.0566019]
[1766142386725,2e-08,88338.0,88335.0,0.06792308]
[1766142386925,2e-08,88338.0,88335.0,0.01132054]
[1766142387085,2e-08,88338.0,88335.0,0.06792309]
[1766142387291,2e-08,88338.0,88333.0,0.01382079]
[1766142387492,2e-08,88338.0,88334.0,0.01132066]
[1766142388379,2e-08,88338.0,88334.0,0.0679239]
[1766142388530,2e-08,88338.0,88333.0,0.0025]
[1766142388716,2e-08,88338.0,88335.0,0.06792311]
[1766142390671,2e-08,88338.0,88333.0,0.0025]
[1766142390958,2e-08,88338.0,88335.0,0.01132054]
[1766142391863,2e-08,88338.0,88333.0,0.0025]
[1766142394407,2e-08,88338.0,88336.0,0.05660205]
[1766142394831,2e-08,88338.0,88337.0,0.05660142]
[1766142396601,2e-08,88338.0,88336.0,0.05660205]
[1766142397033,2e-08,88338.0,88335.0,0.06792324]
[1766142397228,2e-08,88338.0,88334.0,0.07924422]
[1766142397446,2e-08,88338.0,88334.0,0.09056488]
[1766142397688,2e-08,88338.0,88334.0,0.02264133]
[1766142397900,2e-08,88338.0,88333.0,0.0025]
[1766142400917,2e-08,88338.0,88321.0,0.033967]
[1766142401149,2e-08,88338.0,88309.0,0.01132387]
[1766142401150,0.45122,88329.0,88309.0,0.01132387]
[1766142401365,0.45122,88329.0,88304.0,0.00568]
[1766142401366,0.45122,88317.0,88304.0,0.00568]
[1766142401574,0.45122,88314.0,88304.0,0.00568]
[1766142401813,0.4669,88314.0,88301.0,0.00568]
[1766142402130,0.45122,88313.0,88301.0,0.0170049]
[1766142402305,0.45122,88313.0,88301.0,0.0025]
[1766142402708,0.45122,88313.0,88301.0,0.0138249]
[1766142402908,0.45122,88312.0,88301.0,0.0025]
[1766142403088,0.45122,88312.0,88301.0,0.07044935]
[1766142403298,0.45122,88312.0,88301.0,0.0025]
[1766142403536,0.45122,88312.0,88301.0,0.0138249]
[1766142403910,0.45122,88312.0,88301.0,0.0113249]
[1766142404531,0.45122,88312.0,88302.0,0.01132477]
[1766142404707,0.45122,88312.0,88303.0,0.01132464]
[1766142404912,0.45122,88317.0,88303.0,0.01132464]
[1766142405082,0.45122,88317.0,88305.0,0.01132438]
[1766142406097,0.45122,88317.0,88304.0,0.0679465]
[1766142406098,0.00568,88316.0,88304.0,0.01132451]
[1766142406282,0.00568,88316.0,88305.0,0.01132438]
[1766142406479,0.00568,88316.0,88306.0,0.01132425]
[1766142406946,0.00568,88316.0,88304.0,0.00568]
[1766142407125,0.4569,88316.0,88304.0,0.00568]
[1766142407764,0.45122,88312.0,88304.0,0.00568]
[1766142408489,0.45122,88312.0,88301.0,0.06794892]
[1766142408786,0.00568,88316.0,88312.0,0.001099]
[1766142409192,0.00568,88316.0,88305.0,0.06794631]
[1766142409426,0.00568,88316.0,88306.0,0.02264851]
[1766142409564,0.00568,88316.0,88305.0,0.05662179]
[1766142409768,0.00568,88316.0,88305.0,0.01132438]
[1766142410774,0.00568,88316.0,88304.0,0.01132451]
[1766142411317,0.00568,88316.0,88305.0,0.01132438]
[1766142411730,0.00568,88316.0,88306.0,0.01132425]
[1766142412101,0.00568,88316.0,88308.0,0.011324]